[Event "Titled Tuesday Blitz August 1 Late 2023"]
[White "Ovchinnikov, Vsevolod"]
[Black "FuenfgegenWilly"]
[WhiteFideId "24176842"]
[WhiteElo "2622"]
[BlackElo "2439"]
[Result "1-0"]
[Round "5"]
[TimeControl "180+1"]
[Date "2023.08.01"]
[WhiteClock "0:00:28"]
[BlackClock "0:00:44"]
[Board "58"]

1. d4 {[%clk 0:03:00]}  d5 {[%clk 0:02:57]} 2. c4 {[%clk 0:03:01]}  e5 {[%clk 0:02:56]} 3. dxe5 {[%clk 0:03:01]}  d4 {[%clk 0:02:57]} 4. Nf3 {[%clk 0:03:01]}  Nc6 {[%clk 0:02:55]} 5. g3 {[%clk 0:03:02]}  Nge7 {[%clk 0:02:55]} 6. Bg2 {[%clk 0:02:59]}  Ng6 {[%clk 0:02:56]} 7. Bg5 {[%clk 0:02:59]}  Be7 {[%clk 0:02:51]} 8. Bxe7 {[%clk 0:02:57]}  Qxe7 {[%clk 0:02:51]} 9. O-O {[%clk 0:02:47]}  Ngxe5 {[%clk 0:02:45]} 10. Nxd4 {[%clk 0:02:42]}  O-O {[%clk 0:02:33]} 11. Nxc6 {[%clk 0:02:37]}  bxc6 {[%clk 0:02:30]} 12. Qc2 {[%clk 0:02:24]}  Rb8 {[%clk 0:02:27]} 13. b3 {[%clk 0:02:19]}  c5 {[%clk 0:02:15]} 14. Nc3 {[%clk 0:02:18]}  c6 {[%clk 0:02:03]} 15. Rad1 {[%clk 0:02:11]}  Qf6 {[%clk 0:02:02]} 16. Rd2 {[%clk 0:02:00]}  Bf5 {[%clk 0:02:02]} 17. e4 {[%clk 0:01:58]}  Bg4 {[%clk 0:01:57]} 18. f4 {[%clk 0:01:58]}  Ng6 {[%clk 0:01:50]} 19. h3 {[%clk 0:01:50]}  Bc8 {[%clk 0:01:48]} 20. Rfd1 {[%clk 0:01:16]}  Qe7 {[%clk 0:01:39]} 21. Qd3 {[%clk 0:01:03]}  Bb7 {[%clk 0:01:24]} 22. Qd6 {[%clk 0:01:01]}  Rfe8 {[%clk 0:01:16]} 23. Qxe7 {[%clk 0:00:57]}  Nxe7 {[%clk 0:01:14]} 24. Na4 {[%clk 0:00:55]}  Rbc8 {[%clk 0:01:01]} 25. Rd7 {[%clk 0:00:52]}  Ba8 {[%clk 0:01:01]} 26. Rxa7 {[%clk 0:00:51]}  h5 {[%clk 0:00:57]} 27. Rdd7 {[%clk 0:00:48]}  Ng6 {[%clk 0:00:57]} 28. Rxf7 {[%clk 0:00:45]}  Rcd8 {[%clk 0:00:54]} 29. Rxg7+ {[%clk 0:00:45]}  Kh8 {[%clk 0:00:54]} 30. Rxg6 {[%clk 0:00:45]}  h4 {[%clk 0:00:52]} 31. Rh6+ {[%clk 0:00:42]}  Kg8 {[%clk 0:00:52]} 32. Rxh4 {[%clk 0:00:43]}  Rd1+ {[%clk 0:00:49]} 33. Kh2 {[%clk 0:00:43]}  Rd2 {[%clk 0:00:50]} 34. f5 {[%clk 0:00:36]}  Bb7 {[%clk 0:00:48]} 35. Rxb7 {[%clk 0:00:33]}  Red8 {[%clk 0:00:45]} 36. f6 {[%clk 0:00:29]}  Rf8 {[%clk 0:00:44]} 37. Rg7# {[%clk 0:00:28]} 1-0


[Site "https://www.chess.com"]

[Event "Titled Tuesday Blitz August 1 Late 2023"]
[White "Vifleemskaia, Svetlana"]
[Black "Karwowski, Kacper"]
[WhiteFideId "4129490"]
[BlackFideId "1126032"]
[WhiteElo "2384"]
[BlackElo "2562"]
[Result "1/2-1/2"]
[Round "5"]
[TimeControl "180+1"]
[Date "2023.08.01"]
[WhiteClock "0:01:27"]
[BlackClock "0:01:03"]
[Board "60"]

1. d4 {[%clk 0:03:00]}  d5 {[%clk 0:02:56]} 2. c4 {[%clk 0:03:00]}  e6 {[%clk 0:02:57]} 3. Nc3 {[%clk 0:03:00]}  a6 {[%clk 0:02:57]} 4. cxd5 {[%clk 0:03:00]}  exd5 {[%clk 0:02:58]} 5. Nf3 {[%clk 0:02:58]}  Nf6 {[%clk 0:02:55]} 6. Bg5 {[%clk 0:02:57]}  Be6 {[%clk 0:02:51]} 7. e3 {[%clk 0:02:56]}  Nbd7 {[%clk 0:02:51]} 8. Bd3 {[%clk 0:02:56]}  c6 {[%clk 0:02:51]} 9. h3 {[%clk 0:02:56]}  Bd6 {[%clk 0:02:49]} 10. O-O {[%clk 0:02:55]}  O-O {[%clk 0:02:48]} 11. a3 {[%clk 0:02:49]}  Qc7 {[%clk 0:02:47]} 12. b4 {[%clk 0:02:42]}  h6 {[%clk 0:02:47]} 13. Bxf6 {[%clk 0:02:39]}  Nxf6 {[%clk 0:02:47]} 14. Na4 {[%clk 0:02:36]}  b5 {[%clk 0:02:23]} 15. Nc5 {[%clk 0:02:35]}  Bxc5 {[%clk 0:02:19]} 16. dxc5 {[%clk 0:02:34]}  a5 {[%clk 0:02:15]} 17. Nd4 {[%clk 0:02:27]}  axb4 {[%clk 0:02:13]} 18. axb4 {[%clk 0:02:26]}  Bd7 {[%clk 0:02:13]} 19. Qc2 {[%clk 0:02:19]}  Qb7 {[%clk 0:02:03]} 20. Nb3 {[%clk 0:01:56]}  Rxa1 {[%clk 0:02:00]} 21. Rxa1 {[%clk 0:01:55]}  Ra8 {[%clk 0:02:01]} 22. Rxa8+ {[%clk 0:01:50]}  Qxa8 {[%clk 0:02:02]} 23. Na5 {[%clk 0:01:50]}  Qe8 {[%clk 0:01:57]} 24. Qc3 {[%clk 0:01:48]}  Qe6 {[%clk 0:01:15]} 25. Qd4 {[%clk 0:01:46]}  g6 {[%clk 0:01:11]} 26. Qf4 {[%clk 0:01:43]}  Kg7 {[%clk 0:01:08]} 27. Qd4 {[%clk 0:01:31]}  Kg8 {[%clk 0:01:04]} 28. Qf4 {[%clk 0:01:31]}  Kg7 {[%clk 0:01:03]} 29. Qd4 {[%clk 0:01:27]}  Kg8 {[%clk 0:01:03]} 1/2-1/2


[Site "https://www.chess.com"]

[Event "Titled Tuesday Blitz August 1 Late 2023"]
[White "Peycheva, Gergana"]
[Black "Akbas, Umut Ata"]
[WhiteFideId "2916711"]
[BlackFideId "44572646"]
[WhiteElo "2484"]
[BlackElo "2802"]
[Result "1-0"]
[Round "5"]
[TimeControl "180+1"]
[Date "2023.08.01"]
[WhiteClock "0:00:18"]
[BlackClock "0:00:13"]
[Board "62"]

1. d4 {[%clk 0:03:00]}  Nf6 {[%clk 0:02:58]} 2. c4 {[%clk 0:03:00]}  e6 {[%clk 0:02:58]} 3. Nc3 {[%clk 0:02:59]}  d5 {[%clk 0:02:58]} 4. cxd5 {[%clk 0:02:59]}  exd5 {[%clk 0:02:59]} 5. Bg5 {[%clk 0:02:58]}  c6 {[%clk 0:02:59]} 6. e3 {[%clk 0:02:59]}  Bf5 {[%clk 0:02:59]} 7. Bd3 {[%clk 0:02:59]}  Bxd3 {[%clk 0:02:59]} 8. Qxd3 {[%clk 0:02:59]}  Nbd7 {[%clk 0:02:59]} 9. Nge2 {[%clk 0:03:00]}  h6 {[%clk 0:03:00]} 10. Bh4 {[%clk 0:02:59]}  Bd6 {[%clk 0:03:00]} 11. Bg3 {[%clk 0:02:56]}  Qe7 {[%clk 0:03:00]} 12. O-O {[%clk 0:02:55]}  O-O {[%clk 0:03:00]} 13. Bxd6 {[%clk 0:02:53]}  Qxd6 {[%clk 0:03:00]} 14. Ng3 {[%clk 0:02:54]}  Rfe8 {[%clk 0:02:59]} 15. Rfe1 {[%clk 0:02:45]}  h5 {[%clk 0:02:55]} 16. e4 {[%clk 0:02:40]}  dxe4 {[%clk 0:02:54]} 17. Ncxe4 {[%clk 0:02:34]}  Nxe4 {[%clk 0:02:48]} 18. Nxe4 {[%clk 0:02:30]}  Qg6 {[%clk 0:02:42]} 19. Qf3 {[%clk 0:02:14]}  Rad8 {[%clk 0:02:26]} 20. h3 {[%clk 0:02:03]}  Re6 {[%clk 0:01:37]} 21. Ng3 {[%clk 0:01:56]}  Rxe1+ {[%clk 0:01:19]} 22. Rxe1 {[%clk 0:01:55]}  Nf6 {[%clk 0:01:20]} 23. Nf5 {[%clk 0:01:46]}  Kh7 {[%clk 0:01:20]} 24. Re5 {[%clk 0:01:33]}  Rd5 {[%clk 0:01:15]} 25. Ne7 {[%clk 0:01:29]}  Qb1+ {[%clk 0:01:15]} 26. Kh2 {[%clk 0:01:28]}  Qxb2 {[%clk 0:00:54]} 27. Nxd5 {[%clk 0:01:14]}  cxd5 {[%clk 0:00:54]} 28. Qf5+ {[%clk 0:00:40]}  Kg8 {[%clk 0:00:54]} 29. Re7 {[%clk 0:00:40]}  Qb6 {[%clk 0:00:37]} 30. Qc8+ {[%clk 0:00:37]}  Kh7 {[%clk 0:00:37]} 31. Rxf7 {[%clk 0:00:32]}  Qxd4 {[%clk 0:00:35]} 32. Qf5+ {[%clk 0:00:28]}  Kh6 {[%clk 0:00:26]} 33. Rxb7 {[%clk 0:00:23]}  Qc5 {[%clk 0:00:20]} 34. Qf4+ {[%clk 0:00:20]}  Kh7 {[%clk 0:00:13]} 35. Qxf6 {[%clk 0:00:18]} 1-0


[Site "https://www.chess.com"]

[Event "Titled Tuesday Blitz August 1 Late 2023"]
[White "Tifferet, Shaked"]
[Black "Goltsev, Dmitry"]
[WhiteFideId "2811529"]
[BlackFideId "24176710"]
[WhiteElo "2478"]
[BlackElo "2653"]
[Result "0-1"]
[Round "5"]
[TimeControl "180+1"]
[Date "2023.08.01"]
[WhiteClock "0:00:00"]
[BlackClock "0:00:29"]
[Board "65"]

1. d4 {[%clk 0:03:00]}  Nf6 {[%clk 0:02:54]} 2. Nc3 {[%clk 0:03:01]}  e6 {[%clk 0:02:54]} 3. Bg5 {[%clk 0:02:59]}  d5 {[%clk 0:02:53]} 4. e4 {[%clk 0:02:58]}  dxe4 {[%clk 0:02:54]} 5. Nxe4 {[%clk 0:02:58]}  Be7 {[%clk 0:02:54]} 6. Bxf6 {[%clk 0:02:58]}  gxf6 {[%clk 0:02:54]} 7. Nf3 {[%clk 0:02:58]}  f5 {[%clk 0:02:55]} 8. Ned2 {[%clk 0:02:58]}  a6 {[%clk 0:02:55]} 9. g3 {[%clk 0:02:57]}  b5 {[%clk 0:02:55]} 10. Bg2 {[%clk 0:02:57]}  Bb7 {[%clk 0:02:56]} 11. O-O {[%clk 0:02:57]}  Nd7 {[%clk 0:02:54]} 12. c3 {[%clk 0:02:55]}  c5 {[%clk 0:02:47]} 13. Re1 {[%clk 0:02:52]}  Nf6 {[%clk 0:02:44]} 14. dxc5 {[%clk 0:02:46]}  Bxc5 {[%clk 0:02:44]} 15. Nb3 {[%clk 0:02:47]}  Bb6 {[%clk 0:02:36]} 16. Nbd4 {[%clk 0:02:34]}  Ne4 {[%clk 0:02:32]} 17. a4 {[%clk 0:02:25]}  h5 {[%clk 0:02:25]} 18. axb5 {[%clk 0:02:23]}  axb5 {[%clk 0:02:19]} 19. Qb3 {[%clk 0:02:10]}  Rxa1 {[%clk 0:02:17]} 20. Rxa1 {[%clk 0:02:10]}  Qd5 {[%clk 0:02:16]} 21. Qxd5 {[%clk 0:01:57]}  Bxd5 {[%clk 0:02:17]} 22. Ne5 {[%clk 0:01:35]}  Ke7 {[%clk 0:01:51]} 23. Nec6+ {[%clk 0:01:07]}  Bxc6 {[%clk 0:01:44]} 24. Nxc6+ {[%clk 0:01:07]}  Kd6 {[%clk 0:01:40]} 25. Bxe4 {[%clk 0:00:52]}  fxe4 {[%clk 0:01:41]} 26. Nd4 {[%clk 0:00:52]}  Bxd4 {[%clk 0:01:38]} 27. Rd1 {[%clk 0:00:49]}  e5 {[%clk 0:01:30]} 28. cxd4 {[%clk 0:00:50]}  Rc8 {[%clk 0:01:29]} 29. dxe5+ {[%clk 0:00:49]}  Kxe5 {[%clk 0:01:30]} 30. Rd2 {[%clk 0:00:44]}  b4 {[%clk 0:01:27]} 31. Re2 {[%clk 0:00:41]}  b3 {[%clk 0:01:23]} 32. Re3 {[%clk 0:00:39]}  Rb8 {[%clk 0:01:18]} 33. f3 {[%clk 0:00:39]}  f5 {[%clk 0:01:16]} 34. Kf2 {[%clk 0:00:27]}  Kd4 {[%clk 0:01:12]} 35. Ke2 {[%clk 0:00:20]}  Rc8 {[%clk 0:01:01]} 36. Rxb3 {[%clk 0:00:18]}  Rc2+ {[%clk 0:01:01]} 37. Kd1 {[%clk 0:00:16]}  Rxh2 {[%clk 0:01:01]} 38. fxe4 {[%clk 0:00:16]}  fxe4 {[%clk 0:01:02]} 39. Rc3 {[%clk 0:00:05]}  Rxb2 {[%clk 0:01:01]} 40. Rc8 {[%clk 0:00:05]}  Rg2 {[%clk 0:00:59]} 41. Rg8 {[%clk 0:00:05]}  Ke3 {[%clk 0:00:55]} 42. Rg5 {[%clk 0:00:06]}  Rg1+ {[%clk 0:00:37]} 43. Kc2 {[%clk 0:00:06]}  Ke2 {[%clk 0:00:35]} 44. Rxh5 {[%clk 0:00:05]}  Rxg3 {[%clk 0:00:35]} 45. Re5 {[%clk 0:00:05]}  e3 {[%clk 0:00:35]} 46. Rh5 {[%clk 0:00:05]}  Kf2 {[%clk 0:00:32]} 47. Rh2+ {[%clk 0:00:05]}  Rg2 {[%clk 0:00:32]} 48. Rh8 {[%clk 0:00:03]}  e2 {[%clk 0:00:32]} 49. Rf8+ {[%clk 0:00:04]}  Ke1 {[%clk 0:00:32]} 50. Kd3 {[%clk 0:00:03]}  Kd1 {[%clk 0:00:27]} 51. Ra8 {[%clk 0:00:02]}  Rg3+ {[%clk 0:00:28]} 52. Kd4 {[%clk 0:00:02]}  e1=Q {[%clk 0:00:28]} 53. Ra1+ {[%clk 0:00:02]}  Ke2 {[%clk 0:00:29]} 54. Ra2+ {[%clk 0:00:02]}  Qd2+ {[%clk 0:00:28]} 55. Rxd2+ {[%clk 0:00:00]}  Kxd2 {[%clk 0:00:29]} 0-1


[Site "https://www.chess.com"]

[Event "Titled Tuesday Blitz August 1 Late 2023"]
[White "Gaal, Zsoka"]
[Black "Goldin, Alexander"]
[WhiteFideId "777765"]
[BlackFideId "2019540"]
[WhiteElo "2466"]
[BlackElo "2601"]
[Result "0-1"]
[Round "5"]
[TimeControl "180+1"]
[Date "2023.08.01"]
[WhiteClock "0:00:09"]
[BlackClock "0:00:23"]
[Board "68"]

1. Nf3 {[%clk 0:03:00]}  d5 {[%clk 0:02:48]} 2. g3 {[%clk 0:03:00]}  g6 {[%clk 0:02:47]} 3. Bg2 {[%clk 0:02:59]}  Bg7 {[%clk 0:02:48]} 4. d4 {[%clk 0:03:00]}  Nf6 {[%clk 0:02:47]} 5. O-O {[%clk 0:03:00]}  O-O {[%clk 0:02:48]} 6. b3 {[%clk 0:03:01]}  c5 {[%clk 0:02:43]} 7. Bb2 {[%clk 0:02:53]}  cxd4 {[%clk 0:02:42]} 8. Nxd4 {[%clk 0:02:53]}  e5 {[%clk 0:02:38]} 9. Nf3 {[%clk 0:02:52]}  e4 {[%clk 0:02:38]} 10. Nd4 {[%clk 0:02:52]}  Nc6 {[%clk 0:02:31]} 11. Nd2 {[%clk 0:02:19]}  Qe7 {[%clk 0:02:31]} 12. a4 {[%clk 0:02:13]}  Re8 {[%clk 0:02:09]} 13. a5 {[%clk 0:02:13]}  e3 {[%clk 0:02:05]} 14. N2f3 {[%clk 0:02:09]}  exf2+ {[%clk 0:02:00]} 15. Rxf2 {[%clk 0:02:09]}  Ng4 {[%clk 0:01:32]} 16. Nxc6 {[%clk 0:02:04]}  bxc6 {[%clk 0:01:32]} 17. Bxg7 {[%clk 0:02:04]}  Nxf2 {[%clk 0:01:14]} 18. Qd4 {[%clk 0:02:04]}  Ne4 {[%clk 0:01:14]} 19. Rf1 {[%clk 0:01:45]}  f6 {[%clk 0:01:09]} 20. Bh6 {[%clk 0:01:39]}  Ba6 {[%clk 0:01:07]} 21. c4 {[%clk 0:01:35]}  Rad8 {[%clk 0:01:04]} 22. Nd2 {[%clk 0:01:14]}  dxc4 {[%clk 0:00:52]} 23. Qxe4 {[%clk 0:00:54]}  Qc5+ {[%clk 0:00:51]} 24. Kh1 {[%clk 0:00:39]}  Rxe4 {[%clk 0:00:50]} 25. Nxe4 {[%clk 0:00:39]}  Qe7 {[%clk 0:00:36]} 26. Nxf6+ {[%clk 0:00:40]}  Kh8 {[%clk 0:00:35]} 27. bxc4 {[%clk 0:00:36]}  Bxc4 {[%clk 0:00:30]} 28. Bg5 {[%clk 0:00:28]}  Qxe2 {[%clk 0:00:26]} 29. Ne4 {[%clk 0:00:20]}  Rd1 {[%clk 0:00:24]} 30. Bf6+ {[%clk 0:00:09]}  Kg8 {[%clk 0:00:23]} 0-1


[Site "https://www.chess.com"]

[Event "Titled Tuesday Blitz August 1 Late 2023"]
[White "Jimenez Almeida, Luis David"]
[Black "Rios Escobar, Adan"]
[WhiteFideId "22242244"]
[BlackFideId "3403645"]
[WhiteElo "2591"]
[BlackElo "2458"]
[Result "1-0"]
[Round "5"]
[TimeControl "180+1"]
[Date "2023.08.01"]
[WhiteClock "0:00:33"]
[BlackClock "0:00:00"]
[Board "70"]

1. e4 {[%clk 0:03:00]}  c5 {[%clk 0:02:59]} 2. Nc3 {[%clk 0:03:00]}  d6 {[%clk 0:02:59]} 3. Nge2 {[%clk 0:03:01]}  Nf6 {[%clk 0:02:57]} 4. d4 {[%clk 0:03:00]}  cxd4 {[%clk 0:02:56]} 5. Nxd4 {[%clk 0:03:01]}  a6 {[%clk 0:02:57]} 6. Bg5 {[%clk 0:03:01]}  Nbd7 {[%clk 0:02:55]} 7. f4 {[%clk 0:03:01]}  g6 {[%clk 0:02:53]} 8. Qf3 {[%clk 0:02:57]}  Bg7 {[%clk 0:02:45]} 9. O-O-O {[%clk 0:02:57]}  O-O {[%clk 0:02:39]} 10. g4 {[%clk 0:02:56]}  e5 {[%clk 0:02:38]} 11. Nde2 {[%clk 0:02:47]}  Qc7 {[%clk 0:02:14]} 12. h3 {[%clk 0:02:33]}  b5 {[%clk 0:02:12]} 13. f5 {[%clk 0:02:06]}  Bb7 {[%clk 0:02:09]} 14. Bg2 {[%clk 0:01:56]}  Rac8 {[%clk 0:02:00]} 15. Rd2 {[%clk 0:01:46]}  b4 {[%clk 0:01:42]} 16. Nd5 {[%clk 0:01:45]}  Bxd5 {[%clk 0:01:35]} 17. exd5 {[%clk 0:01:45]}  Nc5 {[%clk 0:01:10]} 18. Kb1 {[%clk 0:01:40]}  Nfe4 {[%clk 0:00:58]} 19. f6 {[%clk 0:01:35]}  Nxg5 {[%clk 0:00:53]} 20. Qe3 {[%clk 0:01:28]}  Bxf6 {[%clk 0:00:47]} 21. h4 {[%clk 0:01:28]}  h6 {[%clk 0:00:34]} 22. Ng3 {[%clk 0:01:13]}  Nh7 {[%clk 0:00:33]} 23. Rf2 {[%clk 0:01:13]}  Bg7 {[%clk 0:00:31]} 24. g5 {[%clk 0:01:10]}  h5 {[%clk 0:00:30]} 25. Bh3 {[%clk 0:01:08]}  Rb8 {[%clk 0:00:27]} 26. Nxh5 {[%clk 0:01:01]}  gxh5 {[%clk 0:00:25]} 27. Qe2 {[%clk 0:01:02]}  Na4 {[%clk 0:00:20]} 28. Qxh5 {[%clk 0:00:42]}  Nc3+ {[%clk 0:00:20]} 29. Ka1 {[%clk 0:00:42]}  Qa5 {[%clk 0:00:19]} 30. bxc3 {[%clk 0:00:40]}  e4 {[%clk 0:00:10]} 31. Rf6 {[%clk 0:00:36]}  bxc3 {[%clk 0:00:02]} 32. Bf5 {[%clk 0:00:34]}  Nxf6 {[%clk 0:00:00]} 33. gxf6 {[%clk 0:00:33]} 1-0


[Site "https://www.chess.com"]

[Event "Titled Tuesday Blitz August 1 Late 2023"]
[White "vishwa_vijeta"]
[Black "D`Arruda, Ricardo D."]
[BlackFideId "100692"]
[WhiteElo "2567"]
[BlackElo "2453"]
[Result "1/2-1/2"]
[Round "5"]
[TimeControl "180+1"]
[Date "2023.08.01"]
[WhiteClock "0:00:11"]
[BlackClock "0:00:15"]
[Board "72"]

1. e4 {[%clk 0:03:00]}  c5 {[%clk 0:02:59]} 2. Nf3 {[%clk 0:03:00]}  Nc6 {[%clk 0:02:59]} 3. d4 {[%clk 0:03:00]}  cxd4 {[%clk 0:03:00]} 4. Nxd4 {[%clk 0:02:59]}  e5 {[%clk 0:03:00]} 5. Nb5 {[%clk 0:02:55]}  a6 {[%clk 0:03:00]} 6. c4 {[%clk 0:02:55]}  axb5 {[%clk 0:02:59]} 7. cxb5 {[%clk 0:02:52]}  Nd4 {[%clk 0:02:59]} 8. Nc3 {[%clk 0:02:52]}  Nf6 {[%clk 0:02:58]} 9. Bd3 {[%clk 0:02:52]}  Be7 {[%clk 0:02:53]} 10. O-O {[%clk 0:02:52]}  O-O {[%clk 0:02:52]} 11. f4 {[%clk 0:02:52]}  d6 {[%clk 0:02:51]} 12. fxe5 {[%clk 0:02:52]}  dxe5 {[%clk 0:02:51]} 13. Bg5 {[%clk 0:02:51]}  h6 {[%clk 0:02:49]} 14. Bxf6 {[%clk 0:02:50]}  Bxf6 {[%clk 0:02:49]} 15. Nd5 {[%clk 0:02:51]}  Bg5 {[%clk 0:02:49]} 16. a4 {[%clk 0:02:48]}  Be6 {[%clk 0:02:48]} 17. Bc4 {[%clk 0:02:42]}  Rc8 {[%clk 0:02:46]} 18. b3 {[%clk 0:02:40]}  Kh8 {[%clk 0:02:40]} 19. Qd3 {[%clk 0:02:33]}  f5 {[%clk 0:02:35]} 20. Nc3 {[%clk 0:02:27]}  Bxc4 {[%clk 0:02:32]} 21. bxc4 {[%clk 0:02:28]}  Qc7 {[%clk 0:02:25]} 22. Nd5 {[%clk 0:02:09]}  Qxc4 {[%clk 0:02:24]} 23. Qh3 {[%clk 0:02:08]}  fxe4 {[%clk 0:01:59]} 24. Nb6 {[%clk 0:01:58]}  Ne2+ {[%clk 0:01:59]} 25. Kh1 {[%clk 0:01:54]}  Ng3+ {[%clk 0:01:58]} 26. hxg3 {[%clk 0:01:52]}  Rxf1+ {[%clk 0:01:52]} 27. Kh2 {[%clk 0:01:52]}  Rxa1 {[%clk 0:01:37]} 28. Nxc4 {[%clk 0:01:52]}  Rxc4 {[%clk 0:01:37]} 29. Qf5 {[%clk 0:01:35]}  Rc7 {[%clk 0:00:50]} 30. Qxe5 {[%clk 0:01:25]}  Rac1 {[%clk 0:00:49]} 31. Qxe4 {[%clk 0:01:15]}  Re7 {[%clk 0:00:49]} 32. Qf5 {[%clk 0:01:12]}  Rcc7 {[%clk 0:00:36]} 33. b6 {[%clk 0:01:08]}  Rcd7 {[%clk 0:00:35]} 34. a5 {[%clk 0:01:05]}  Be3 {[%clk 0:00:29]} 35. Qf8+ {[%clk 0:00:56]}  Kh7 {[%clk 0:00:28]} 36. Qf5+ {[%clk 0:00:56]}  g6 {[%clk 0:00:29]} 37. Qf3 {[%clk 0:00:50]}  Bd2 {[%clk 0:00:28]} 38. Qa3 {[%clk 0:00:43]}  Re5 {[%clk 0:00:27]} 39. a6 {[%clk 0:00:38]}  Ra5 {[%clk 0:00:25]} 40. axb7 {[%clk 0:00:29]}  Rxa3 {[%clk 0:00:22]} 41. b8=Q {[%clk 0:00:28]}  Rb3 {[%clk 0:00:21]} 42. Qc8 {[%clk 0:00:25]}  Rg7 {[%clk 0:00:20]} 43. Qc6 {[%clk 0:00:20]}  Be3 {[%clk 0:00:18]} 44. Qe6 {[%clk 0:00:18]}  Rc3 {[%clk 0:00:16]} 45. Qe5 {[%clk 0:00:18]}  Ra3 {[%clk 0:00:15]} 46. Qd6 {[%clk 0:00:15]}  Rb3 {[%clk 0:00:15]} 47. Qe6 {[%clk 0:00:15]}  Rc3 {[%clk 0:00:15]} 48. Qe5 {[%clk 0:00:12]}  Rb3 {[%clk 0:00:15]} 49. Qe6 {[%clk 0:00:11]} 1/2-1/2


[Site "https://www.chess.com"]

[Event "Titled Tuesday Blitz August 1 Late 2023"]
[White "Leebit02"]
[Black "Carrasco Miranda, Andres"]
[BlackFideId "3405990"]
[WhiteElo "2553"]
[BlackElo "2440"]
[Result "1-0"]
[Round "5"]
[TimeControl "180+1"]
[Date "2023.08.01"]
[WhiteClock "0:00:21"]
[BlackClock "0:00:00"]
[Board "77"]

1. e4 {[%clk 0:02:56]}  e5 {[%clk 0:02:59]} 2. Nc3 {[%clk 0:02:52]}  Nf6 {[%clk 0:02:59]} 3. d4 {[%clk 0:02:53]}  exd4 {[%clk 0:02:56]} 4. Qxd4 {[%clk 0:02:53]}  Nc6 {[%clk 0:02:55]} 5. Qd3 {[%clk 0:02:53]}  Bb4 {[%clk 0:02:55]} 6. Bd2 {[%clk 0:02:48]}  O-O {[%clk 0:02:54]} 7. O-O-O {[%clk 0:02:47]}  Re8 {[%clk 0:02:55]} 8. Nge2 {[%clk 0:02:44]}  d6 {[%clk 0:02:36]} 9. Bg5 {[%clk 0:02:44]}  h6 {[%clk 0:02:34]} 10. Bxf6 {[%clk 0:02:40]}  Qxf6 {[%clk 0:02:33]} 11. Nd5 {[%clk 0:02:41]}  Qd8 {[%clk 0:02:12]} 12. Nxb4 {[%clk 0:02:37]}  Nxb4 {[%clk 0:02:13]} 13. Qd2 {[%clk 0:02:38]}  Nc6 {[%clk 0:01:58]} 14. Nc3 {[%clk 0:02:37]}  Be6 {[%clk 0:01:57]} 15. f4 {[%clk 0:02:33]}  f5 {[%clk 0:01:44]} 16. exf5 {[%clk 0:02:17]}  Bxf5 {[%clk 0:01:43]} 17. h3 {[%clk 0:02:11]}  Kh8 {[%clk 0:01:24]} 18. g4 {[%clk 0:02:10]}  Be6 {[%clk 0:01:24]} 19. Bg2 {[%clk 0:02:00]}  Qf6 {[%clk 0:01:15]} 20. Kb1 {[%clk 0:01:51]}  Rf8 {[%clk 0:01:14]} 21. Rhf1 {[%clk 0:01:50]}  Rab8 {[%clk 0:01:03]} 22. Ne4 {[%clk 0:01:47]}  Qh4 {[%clk 0:00:59]} 23. f5 {[%clk 0:01:37]}  Bg8 {[%clk 0:00:56]} 24. f6 {[%clk 0:01:28]}  Bh7 {[%clk 0:00:48]} 25. fxg7+ {[%clk 0:01:19]}  Kxg7 {[%clk 0:00:48]} 26. Qc3+ {[%clk 0:01:19]}  Kg8 {[%clk 0:00:41]} 27. Nf6+ {[%clk 0:01:15]}  Rxf6 {[%clk 0:00:40]} 28. Qxf6 {[%clk 0:01:13]}  Qxf6 {[%clk 0:00:39]} 29. Rxf6 {[%clk 0:01:14]}  Nb4 {[%clk 0:00:37]} 30. Rf2 {[%clk 0:01:10]}  Re8 {[%clk 0:00:36]} 31. Bf1 {[%clk 0:00:56]}  Re5 {[%clk 0:00:29]} 32. Bc4+ {[%clk 0:00:56]}  d5 {[%clk 0:00:30]} 33. Bb3 {[%clk 0:00:56]}  c5 {[%clk 0:00:27]} 34. a3 {[%clk 0:00:56]}  c4 {[%clk 0:00:27]} 35. Ba4 {[%clk 0:00:54]}  Na6 {[%clk 0:00:23]} 36. Bd7 {[%clk 0:00:52]}  Nc5 {[%clk 0:00:22]} 37. Bf5 {[%clk 0:00:52]}  Bxf5 {[%clk 0:00:18]} 38. Rxf5 {[%clk 0:00:52]}  Re2 {[%clk 0:00:11]} 39. Rdxd5 {[%clk 0:00:47]}  Ne4 {[%clk 0:00:10]} 40. Rd7 {[%clk 0:00:36]}  c3 {[%clk 0:00:07]} 41. bxc3 {[%clk 0:00:35]}  Nxc3+ {[%clk 0:00:06]} 42. Kb2 {[%clk 0:00:36]}  Na4+ {[%clk 0:00:05]} 43. Kb3 {[%clk 0:00:36]}  Nb6 {[%clk 0:00:05]} 44. Rd3 {[%clk 0:00:33]}  Re4 {[%clk 0:00:03]} 45. Rc5 {[%clk 0:00:27]}  a5 {[%clk 0:00:03]} 46. Rxa5 {[%clk 0:00:26]}  Nc4 {[%clk 0:00:02]} 47. Rc5 {[%clk 0:00:24]}  b5 {[%clk 0:00:02]} 48. Rxb5 {[%clk 0:00:23]}  Ne5 {[%clk 0:00:03]} 49. Rc3 {[%clk 0:00:21]}  Kf7 {[%clk 0:00:03]} 50. a4 {[%clk 0:00:20]}  Kf6 {[%clk 0:00:00]} 51. a5 {[%clk 0:00:21]} 1-0


[Site "https://www.chess.com"]